bitfinex-derivatives/quotes_BTCF0:USTF0_20250329
["timestamp","ask_amount","ask_price","bid_price","bid_amount"]
[1743213015191,0.1505149,84290.0,84289.0,0.0066]
[1743213016695,0.1505149,84290.0,84289.0,0.0046]
[1743213017201,0.1505149,84290.0,84289.0,0.0026]
[1743213018698,0.2656749,84290.0,84289.0,0.0026]
[1743213019590,0.2656749,84290.0,84289.0,0.0016]
[1743213020696,0.2666749,84290.0,84289.0,0.0006]
[1743213022798,0.2666749,84290.0,84285.0,0.06457785]
[1743213022799,0.1187006,84286.0,84285.0,0.06457785]
[1743213022996,0.12010061,84286.0,84285.0,0.06457785]
[1743213023598,0.18570061,84286.0,84285.0,0.06457785]
[1743213024104,0.18570061,84286.0,84285.0,0.03297785]
[1743213024903,0.18570061,84286.0,84285.0,0.03357785]
[1743213027397,0.18570061,84286.0,84285.0,0.03297785]
[1743213030798,0.18570061,84286.0,84285.0,0.00017785]
[1743213030998,0.1187048,84283.0,84282.0,0.0321]
[1743213031197,0.0593554,84279.0,84275.0,0.0323]
[1743213031403,0.1187161,84275.0,84270.0,0.0304]
[1743213031608,0.12027611,84275.0,84271.0,0.0331]
[1743213032202,0.18307611,84275.0,84271.0,0.0331]
[1743213032401,0.18107611,84275.0,84271.0,0.0331]
[1743213032703,0.17907611,84275.0,84271.0,0.0331]
[1743213033104,0.18307611,84275.0,84271.0,0.0331]
[1743213033307,0.1187203,84272.0,84271.0,0.0331]
[1743213033607,0.1187273,84267.0,84266.0,0.00011939]
[1743213033803,0.2354073,84267.0,84266.0,0.00011939]
[1743213034517,0.2987073,84267.0,84266.0,0.03141939]
[1743213035606,0.2987073,84267.0,84266.0,0.00011939]
[1743213036106,0.3007073,84267.0,84266.0,0.00011939]
[1743213036313,0.31246192,84267.0,84266.0,0.00011939]
[1743213036708,0.31446192,84267.0,84266.0,0.00011939]
[1743213044318,0.45627317,84267.0,84266.0,0.00011939]
[1743213047205,0.31446192,84267.0,84266.0,0.00011939]
[1743213056428,0.16870192,84267.0,84266.0,0.00011939]
[1743213056726,0.25116192,84267.0,84266.0,0.00011939]
[1743213056927,0.25116192,84267.0,84266.0,0.11884809]
[1743213057129,0.25116192,84267.0,84266.0,0.09561939]
[1743213057724,0.31516192,84267.0,84266.0,0.21434809]
[1743213057920,0.31516192,84267.0,84266.0,0.09561939]
[1743213058930,0.28246192,84267.0,84266.0,0.09561939]
[1743213059325,0.38854995,84267.0,84266.0,0.09561939]
[1743213059528,0.27338995,84267.0,84266.0,0.09561939]
[1743213059821,0.38854995,84267.0,84266.0,0.09561939]
[1743213060228,0.38854995,84267.0,84266.0,0.21434809]
[1743213062438,0.11160803,84267.0,84266.0,0.21434809]
[1743213062624,0.22676803,84267.0,84266.0,0.21434809]
[1743213062819,0.34549533,84267.0,84266.0,0.21434809]
[1743213063520,0.34549533,84267.0,84266.0,0.09561939]
[1743213063917,0.34549533,84267.0,84266.0,0.00011939]
[1743213064121,0.40769533,84267.0,84266.0,0.00011939]
[1743213064323,0.40969533,84267.0,84266.0,0.00011939]
[1743213064717,0.44505801,84267.0,84266.0,0.11884809]
[1743213065124,0.44505801,84267.0,84266.0,0.00011939]
[1743213065529,0.44305801,84267.0,84266.0,0.00011939]
[1743213065732,0.44505801,84267.0,84266.0,0.00011939]
[1743213066128,0.44305801,84267.0,84266.0,0.00011939]
[1743213066330,0.44505801,84267.0,84266.0,0.00011939]
[1743213067934,0.44505801,84267.0,84266.0,0.11884809]
[1743213068436,0.3036073,84267.0,84266.0,0.11884809]
[1743213069022,0.3036073,84267.0,84266.0,0.54384809]
[1743213070225,0.1884473,84267.0,84266.0,0.54384809]
[1743213070519,0.3036073,84267.0,84266.0,0.54384809]
[1743213070934,0.3036073,84267.0,84266.0,0.55910093]
[1743213071527,0.3036073,84267.0,84266.0,0.44037223]
[1743213071736,0.3036073,84267.0,84266.0,0.37617223]
[1743213074922,0.3036073,84267.0,84266.0,0.36091939]
[1743213079039,0.44515198,84267.0,84266.0,0.36091939]
[1743213079237,0.44515198,84267.0,84266.0,0.00011939]
[1743213079535,0.44515198,84267.0,84266.0,0.36091939]
[1743213083242,0.3036073,84267.0,84266.0,0.00011939]
[1743213083439,0.3036073,84267.0,84266.0,0.36091939]
[1743213090435,0.3036073,84267.0,84266.0,0.00011939]
[1743213090936,0.36132828,84267.0,84266.0,0.00011939]
[1743213094844,0.3036073,84267.0,84266.0,0.00011939]
[1743213098545,0.3036073,84267.0,84266.0,0.36091939]
[1743213101261,0.3036073,84267.0,84266.0,0.00011939]
[1743213103555,0.36132809,84267.0,84266.0,0.00011939]
[1743213108058,0.57426995,84267.0,84266.0,0.00011939]
[1743213110359,0.1187428,84256.0,84255.0,0.3608]
[1743213110568,0.23546281,84256.0,84255.0,0.3608]
[1743213111172,0.29826281,84256.0,84255.0,0.3608]
[1743213111863,0.1177555,84247.0,84246.0,0.0332]
[1743213112067,0.23347551,84247.0,84246.0,0.0332]
[1743213112259,0.1187569,84246.0,84241.0,0.28456435]
[1743213112455,0.1830369,84246.0,84242.0,0.0642]
[1743213112661,0.1187612,84243.0,84242.0,0.0642]
[1743213112854,0.1202412,84243.0,84242.0,0.0642]
[1743213113063,0.1142412,84243.0,84242.0,0.0642]
[1743213113461,0.1790412,84243.0,84242.0,0.0642]
[1743213114765,0.1780412,84243.0,84242.0,0.0642]
[1743213115068,0.18964027,84243.0,84242.0,0.0662]
[1743213115464,0.18964027,84243.0,84242.0,0.0672]
[1743213117863,0.18964027,84243.0,84242.0,0.0362]
[1743213118066,0.18964027,84243.0,84242.0,0.003]
[1743213121575,0.18964027,84243.0,84242.0,0.0358]
[1743213122061,0.18964027,84243.0,84242.0,0.066]
[1743213122266,0.30480027,84243.0,84242.0,0.066]
[1743213123769,0.18964027,84243.0,84242.0,0.066]
[1743213124075,0.41076327,84243.0,84242.0,0.066]
[1743213124569,0.29560327,84243.0,84242.0,0.066]
[1743213124762,0.41076327,84243.0,84242.0,0.066]
[1743213131982,0.30480027,84243.0,84242.0,0.066]
[1743213133678,0.18964027,84243.0,84242.0,0.066]
[1743213133878,0.18964027,84243.0,84242.0,0.1847626]
[1743213134084,0.30480027,84243.0,84242.0,0.1847626]
[1743213137075,0.30480027,84243.0,84242.0,0.5455626]
[1743213138277,0.30480027,84243.0,84242.0,0.1847626]
[1743213138481,0.30480027,84243.0,84242.0,0.5455626]
[1743213139774,0.30480027,84243.0,84242.0,0.1847626]
[1743213139976,0.30480027,84243.0,84242.0,0.5455626]
[1743213142983,0.30480027,84243.0,84242.0,0.1847626]
[1743213143172,0.30480027,84243.0,84242.0,0.5455626]
[1743213145988,0.30480027,84243.0,84242.0,0.1847626]
[1743213146187,0.30480027,84243.0,84242.0,0.5455626]
[1743213146395,0.30480027,84243.0,84242.0,0.1847626]
[1743213146691,0.30480027,84243.0,84242.0,0.5455626]
[1743213147484,0.30480027,84243.0,84242.0,0.1847626]
[1743213147693,0.30480027,84243.0,84242.0,0.5455626]
[1743213151792,0.30480027,84243.0,84242.0,0.1847626]
[1743213152097,0.30480027,84243.0,84242.0,0.5455626]
[1743213153084,0.30480027,84243.0,84242.0,0.1847626]
[1743213153285,0.30480027,84243.0,84242.0,0.5455626]
[1743213154590,0.07787907,84243.0,84242.0,0.4825626]
[1743213154794,0.1850412,84243.0,84242.0,0.4825626]
[1743213154991,0.1850412,84243.0,84242.0,0.53366974]
[1743213155189,0.1850412,84243.0,84242.0,0.59896974]
[1743213155599,0.19660114,84243.0,84242.0,0.59896974]
[1743213157491,0.19660114,84243.0,84242.0,0.5478626]
[1743213159889,0.19660114,84243.0,84242.0,0.5156626]
[1743213165702,0.3382734,84243.0,84242.0,0.5156626]
[1743213165895,0.4533934,84243.0,84242.0,0.5156626]
[1743213166605,0.4533934,84243.0,84242.0,0.4825626]
[1743213167907,0.4533934,84243.0,84242.0,0.3638]
[1743213170007,0.4533934,84243.0,84242.0,0.003]
[1743213172399,0.3382734,84243.0,84242.0,0.003]
[1743213172601,0.36945692,84243.0,84242.0,0.003]
[1743213174402,0.36945692,84243.0,84242.0,0.3638]
[1743213174602,0.36945692,84243.0,84242.0,0.003]
[1743213174906,0.36945692,84243.0,84242.0,0.3638]
[1743213175906,0.25433692,84243.0,84242.0,0.3638]
[1743213176099,0.36945692,84243.0,84242.0,0.5463626]
[1743213176295,0.36945692,84243.0,84242.0,0.5789626]
[1743213177009,0.31172114,84243.0,84242.0,0.5789626]
[1743213177402,0.19660114,84243.0,84242.0,0.5789626]
[1743213177597,0.31172114,84243.0,84242.0,0.5789626]
[1743213177804,0.31172114,84243.0,84242.0,0.3638]
[1743213180405,0.19660114,84243.0,84242.0,0.4825626]
[1743213180609,0.31172114,84243.0,84242.0,0.4825626]
[1743213181199,0.31172114,84243.0,84242.0,0.5756626]
[1743213181815,0.3001612,84243.0,84242.0,0.5756626]
[1743213182304,0.1814,84243.0,84242.0,0.5756626]
[1743213182505,0.1850412,84243.0,84242.0,0.5756626]
[1743213183312,0.06628,84243.0,84242.0,0.2148626]
[1743213183504,0.06628,84243.0,84242.0,0.9364626]
[1743213183707,0.1850412,84243.0,84242.0,0.9364626]
[1743213187119,0.06628,84243.0,84242.0,0.9364626]
[1743213187321,0.1850412,84243.0,84242.0,0.9364626]
[1743213188908,0.06628,84243.0,84242.0,0.9364626]
[1743213190614,0.06628,84243.0,84242.0,0.2148626]
[1743213190812,0.06628,84243.0,84242.0,0.9364626]
[1743213191813,0.06628,84243.0,84242.0,0.2148626]
[1743213192015,0.06628,84243.0,84242.0,0.9364626]
[1743213192319,0.1850412,84243.0,84242.0,0.9364626]
[1743213193911,0.1850412,84243.0,84242.0,0.2148626]
[1743213194114,0.1850412,84243.0,84242.0,0.9364626]
[1743213195222,0.1850412,84243.0,84242.0,0.8433626]
[1743213197017,0.1850412,84243.0,84242.0,0.1217626]
[1743213197324,0.1850412,84243.0,84242.0,0.8433626]
[1743213197723,0.1850412,84243.0,84242.0,0.1217626]
[1743213197922,0.1850412,84243.0,84242.0,0.8433626]
[1743213199518,0.1850412,84243.0,84242.0,0.1217626]
[1743213199719,0.1850412,84243.0,84242.0,0.8433626]
[1743213203530,0.06628,84243.0,84242.0,0.8433626]
[1743213204035,0.1850412,84243.0,84242.0,0.8433626]
[1743213204526,0.1850412,84243.0,84242.0,0.9079626]
[1743213205034,0.1850412,84243.0,84242.0,0.1863626]
[1743213205234,0.1850412,84243.0,84242.0,0.9079626]
[1743213205923,0.06628,84243.0,84242.0,0.9079626]
[1743213206320,0.06628,84243.0,84242.0,0.8433626]
[1743213206724,0.0648,84243.0,84242.0,0.89444614]
[1743213206925,0.06636001,84243.0,84242.0,0.95934614]
[1743213207735,0.06636001,84243.0,84242.0,0.9709157]
[1743213209730,0.06636001,84243.0,84242.0,0.2493157]
[1743213209936,0.06636001,84243.0,84242.0,0.53388005]
[1743213210238,0.06636001,84243.0,84242.0,1.25548005]
[1743213212044,0.06636001,84243.0,84242.0,0.53388005]
[1743213212245,0.06636001,84243.0,84242.0,1.25548005]
[1743213212844,0.06636001,84243.0,84242.0,1.24391049]
[1743213213045,0.06636001,84243.0,84242.0,0.52231049]
[1743213213247,0.06636001,84243.0,84242.0,1.24391049]
[1743213214234,0.0648,84243.0,84242.0,0.95934614]
[1743213214438,0.06628,84243.0,84242.0,0.95934614]
[1743213214748,0.06632,84243.0,84242.0,0.95934614]
[1743213215634,0.1850812,84243.0,84242.0,0.95934614]
[1743213215834,0.2178812,84243.0,84242.0,0.89444614]
[1743213220143,0.2178812,84243.0,84242.0,0.41488354]
[1743213220340,0.2178812,84243.0,84242.0,0.3638]
[1743213221949,0.2178812,84243.0,84242.0,0.57737347]
[1743213226138,0.2178812,84243.0,84242.0,0.3638]
[1743213227339,0.2178812,84243.0,84242.0,0.003]
[1743213231156,0.3329612,84243.0,84242.0,0.003]
[1743213233160,0.47438955,84243.0,84242.0,0.003]
[1743213235959,0.35930955,84243.0,84242.0,0.003]
[1743213236155,0.47434955,84243.0,84242.0,0.003]
[1743213238366,0.3329212,84243.0,84242.0,0.003]
[1743213244265,0.47434955,84243.0,84242.0,0.003]
[1743213248869,0.3329212,84243.0,84242.0,0.003]
[1743213252176,0.39065649,84243.0,84242.0,0.003]
[1743213272501,0.60274906,84243.0,84242.0,0.003]
[1743213275191,0.48770906,84243.0,84242.0,0.003]
[1743213275387,0.60270906,84243.0,84242.0,0.003]
[1743213283896,0.48770906,84243.0,84242.0,0.003]
[1743213284101,0.60270906,84243.0,84242.0,0.3638]
[1743213284407,0.56990906,84243.0,84242.0,0.3638]
[1743213286101,0.35781649,84243.0,84242.0,0.3638]
[1743213286505,0.35781649,84243.0,84242.0,0.003]
[1743213286706,0.35781649,84243.0,84242.0,0.3638]
[1743213289511,0.35781649,84243.0,84242.0,0.003]
[1743213289709,0.35781649,84243.0,84242.0,0.3638]
[1743213289910,0.3000812,84243.0,84242.0,0.3638]
[1743213290411,0.3000812,84243.0,84242.0,0.003]
[1743213290703,0.3000812,84243.0,84242.0,0.3638]
[1743213294598,0.3000812,84243.0,84242.0,0.003]
[1743213294806,0.3000812,84243.0,84242.0,0.3638]
[1743213297514,0.3000812,84243.0,84242.0,0.003]
[1743213297712,0.3000812,84243.0,84242.0,0.3638]
[1743213299017,0.3000812,84243.0,84242.0,0.003]
[1743213299215,0.3000812,84243.0,84242.0,0.3638]
[1743213300209,0.3000812,84243.0,84242.0,0.003]
[1743213300410,0.3000812,84243.0,84242.0,0.3638]
[1743213300615,0.3000812,84243.0,84242.0,0.3401]
[1743213301010,0.1187682,84238.0,84237.0,0.0626]
[1743213301219,0.1202482,84238.0,84237.0,0.4234]
[1743213301915,0.1813482,84238.0,84237.0,0.4234]
[1743213302313,0.1813482,84238.0,84237.0,0.5421696]
[1743213302509,0.1813482,84238.0,84237.0,0.4234]
[1743213302718,0.1813482,84238.0,84237.0,0.4244]
[1743213302906,0.1823482,84238.0,84237.0,0.5431696]
[1743213303107,0.1823482,84238.0,84237.0,0.1823696]
[1743213303512,0.1823482,84238.0,84237.0,0.5431696]
[1743213303918,0.2973482,84238.0,84237.0,0.5431696]
[1743213314019,0.2973082,84238.0,84237.0,0.5431696]
[1743213316738,0.2973082,84238.0,84237.0,0.59428376]
[1743213317840,0.06358,84238.0,84237.0,0.59428376]
[1743213318039,0.17697213,84245.0,84241.0,0.0593818]
[1743213318232,0.17849213,84245.0,84244.0,0.4795597]
[1743213318541,0.0303,84252.0,84250.0,0.1187513]
[1743213318735,0.21321258,84251.0,84250.0,0.1194713]
[1743213318933,0.21321258,84251.0,84250.0,0.17058546]
[1743213319139,0.33196248,84251.0,84250.0,0.17058546]
[1743213319436,0.33196248,84251.0,84250.0,0.2141713]
[1743213319632,0.21321258,84251.0,84250.0,0.2141713]
[1743213319937,0.21321258,84251.0,84250.0,0.2151713]
[1743213320552,0.21321258,84251.0,84250.0,0.5759713]
[1743213320735,0.33196248,84251.0,84250.0,0.5759713]
[1743213321044,0.33196248,84251.0,84250.0,0.5769713]
[1743213321225,0.24391258,84251.0,84250.0,0.5769713]
[1743213322042,0.36266248,84251.0,84250.0,0.5769713]
[1743213322244,0.18076991,84251.0,84250.0,0.79054477]
[1743213322949,0.06202001,84251.0,84250.0,0.79054477]
[1743213325542,0.06202001,84251.0,84250.0,0.5769713]
[1743213326941,0.18076991,84251.0,84250.0,0.5769713]
[1743213331743,0.18076991,84251.0,84250.0,0.5469713]
[1743213332247,0.06202001,84251.0,84250.0,0.5469713]
[1743213332447,0.18076991,84251.0,84250.0,0.5469713]
[1743213332748,0.18076991,84251.0,84250.0,0.5154713]
[1743213337553,0.18076991,84251.0,84250.0,0.4822713]
[1743213340351,0.06202001,84251.0,84250.0,0.4822713]
[1743213340554,0.0609,84251.0,84250.0,0.5125713]
[1743213340753,0.0609,84251.0,84250.0,0.5437713]
[1743213341251,0.06194001,84251.0,84250.0,0.5437713]
[1743213343155,0.17582,84251.0,84250.0,0.5437713]
[1743213343355,0.17686001,84251.0,84250.0,0.5437713]
[1743213344448,0.17686001,84251.0,84250.0,0.9045713]
[1743213346959,0.03137796,84255.0,84254.0,0.1187456]
[1743213347157,0.01180209,84264.0,84260.0,0.1187372]
[1743213347357,0.11492,84262.0,84260.0,0.7101372]
[1743213347659,0.00072,84261.0,84260.0,0.7101372]
[1743213348058,0.1187335,84263.0,84261.0,0.1187358]
[1743213348360,0.2343735,84263.0,84262.0,0.0631]
[1743213348662,0.2343735,84263.0,84262.0,0.0637]
[1743213348955,0.1194535,84263.0,84262.0,0.0637]
[1743213349358,0.1194535,84263.0,84262.0,0.1824344]
[1743213349751,0.121453,84263.0,84262.0,0.5432344]
[1743213349945,0.123453,84263.0,84262.0,0.5432344]
[1743213350151,0.183633,84263.0,84262.0,0.5432344]
[1743213350449,0.06562,84263.0,84262.0,0.5432344]
[1743213350649,0.06562,84263.0,84262.0,0.5753344]
[1743213351460,0.0649,84263.0,84262.0,0.5753344]
[1743213351654,0.0657,84263.0,84262.0,0.5753344]
[1743213352050,0.184433,84263.0,84262.0,0.5753344]
[1743213352649,0.0657,84263.0,84262.0,0.5753344]
[1743213354359,0.0649,84263.0,84262.0,0.5753344]
[1743213354659,0.06562,84263.0,84262.0,0.5753344]
[1743213355653,0.0649,84263.0,84262.0,0.5753344]
[1743213356366,0.06562,84263.0,84262.0,0.8453344]
[1743213356661,0.06562,84263.0,84262.0,1.2061344]
[1743213357264,0.03512,84263.0,84262.0,1.2061344]
[1743213357464,0.0344,84263.0,84262.0,1.2061344]
[1743213358661,0.22103915,84267.0,84264.0,0.1187316]
[1743213358865,0.22103915,84267.0,84266.0,0.1187287]
[1743213359061,0.22103915,84267.0,84266.0,0.1194087]
[1743213359261,0.22175915,84267.0,84266.0,0.1831087]
[1743213359762,0.22375915,84267.0,84266.0,0.1831087]
[1743213360059,0.22575915,84267.0,84266.0,0.1831087]
[1743213360263,0.22375915,84267.0,84266.0,0.1831087]
[1743213360455,0.34548645,84267.0,84266.0,0.1831087]
[1743213360655,0.35754891,84267.0,84266.0,0.1831087]
[1743213361263,0.25138976,84267.0,84266.0,0.1831087]
[1743213361768,0.28458976,84267.0,84266.0,0.00068]
[1743213362267,0.28458976,84267.0,84266.0,0.1194087]
[1743213362566,0.28458976,84267.0,84266.0,0.4802087]
[1743213369267,0.28458976,84267.0,84266.0,0.36148]
[1743213369963,0.28458976,84267.0,84266.0,0.4802087]
[1743213373667,0.28458976,84267.0,84266.0,0.36148]
[1743213377870,0.31568976,84267.0,84266.0,0.36148]
[1743213378070,0.31568976,84267.0,84266.0,0.4802087]
[1743213378880,0.31568976,84267.0,84266.0,0.36148]
[1743213381368,0.31568976,84267.0,84266.0,0.4802087]
[1743213381773,0.31568976,84267.0,84266.0,0.5102087]
[1743213382276,0.31568976,84267.0,84266.0,0.5415087]
[1743213382477,0.31568976,84267.0,84266.0,0.42278]
[1743213382675,0.31568976,84267.0,84266.0,0.5415087]
[1743213384576,0.45735686,84267.0,84266.0,0.5415087]
[1743213384874,0.45735686,84267.0,84266.0,0.42278]
[1743213388874,0.45735686,84267.0,84266.0,0.5415087]
[1743213392488,0.45735686,84267.0,84266.0,0.1807087]
[1743213392987,0.45735686,84267.0,84266.0,0.5415087]
[1743213393382,0.45735686,84267.0,84266.0,0.42278]
[1743213393986,0.45731686,84267.0,84266.0,0.42278]
[1743213396094,0.31564976,84267.0,84266.0,0.06198]
[1743213396288,0.31564976,84267.0,84266.0,0.42278]
[1743213396694,0.31564976,84267.0,84266.0,0.06198]
[1743213396992,0.31564976,84267.0,84266.0,0.42278]
[1743213398881,0.31564976,84267.0,84266.0,0.06198]
[1743213399194,0.31564976,84267.0,84266.0,0.42278]
[1743213402782,0.31564976,84267.0,84266.0,0.06198]
[1743213403105,0.31564976,84267.0,84266.0,0.42278]
[1743213404088,0.31564976,84267.0,84266.0,0.5415087]
[1743213404288,0.13650976,84267.0,84266.0,0.5415087]
[1743213404891,0.25134976,84267.0,84266.0,0.5415087]
[1743213405598,0.13650976,84267.0,84266.0,0.5415087]
[1743213406982,0.17707049,84269.0,84268.0,0.1187259]
[1743213407292,0.1187135,84277.0,84273.0,0.1187189]
[1743213407487,0.21269258,84274.0,84273.0,0.7501589]
[1743213408194,0.21269258,84274.0,84273.0,0.8438589]
[1743213408494,0.00460001,84274.0,84273.0,0.8438589]
[1743213408693,0.00460001,84274.0,84273.0,0.85280965]
[1743213409295,0.00860001,84274.0,84273.0,0.85280965]
[1743213412288,0.008,84274.0,84273.0,0.85280965]
[1743213413701,0.008,84274.0,84273.0,1.21360965]
[1743213417088,0.008,84274.0,84273.0,0.49200965]
[1743213417288,0.008,84274.0,84273.0,1.21360965]
[1743213418293,0.1148,84281.0,84280.0,0.118709]
[1743213418492,0.00072,84281.0,84280.0,0.480229]
[1743213419191,0.00072,84281.0,84280.0,0.543729]
[1743213419498,0.00572,84281.0,84280.0,0.543729]
[1743213419699,0.01072,84281.0,84280.0,0.544729]
[1743213421284,0.1612276,84281.0,84280.0,0.544729]
[1743213422092,0.1612276,84281.0,84280.0,0.905529]
[1743213422594,0.1913276,84281.0,84280.0,0.183929]
[1743213422804,0.1913276,84281.0,84280.0,0.905529]
[1743213427100,0.01072,84281.0,84280.0,1.185529]
[1743213427302,0.01,84281.0,84280.0,1.185529]
[1743213427606,0.01,84281.0,84280.0,1.20075341]
[1743213432308,0.0333,84287.0,84283.0,0.0593518]
[1743213432507,0.0333,84287.0,84284.0,0.10862441]
[1743213432808,0.0333,84287.0,84286.0,0.1187006]
[1743213432999,0.0333,84287.0,84286.0,0.40612822]
[1743213433200,0.0333,84287.0,84286.0,0.46992822]
[1743213433802,0.0383,84287.0,84286.0,0.46992822]
[1743213434005,0.0403,84287.0,84286.0,0.46992822]
[1743213434696,0.0383,84287.0,84286.0,0.46992822]
[1743213434897,0.0403,84287.0,84286.0,0.46992822]
[1743213435304,0.00017796,84295.0,84294.0,0.1186893]
[1743213435505,0.03095796,84295.0,84294.0,1.11615371]
[1743213435909,0.03027796,84295.0,84294.0,1.11615371]
[1743213436104,0.0323,84297.0,84296.0,0.1186865]
[1743213436303,0.0323,84297.0,84296.0,0.36455091]
[1743213436508,0.11476,84302.0,84299.0,0.1186823]
[1743213436816,0.10677625,84300.0,84299.0,0.38970511]
[1743213437109,0.10677625,84300.0,84299.0,0.3902047]
[1743213437495,0.10613625,84300.0,84299.0,0.3902047]
[1743213437910,0.03,84301.0,84300.0,0.1186809]
[1743213437911,0.13613625,84301.0,84300.0,0.1186809]
[1743213438112,0.10613625,84301.0,84300.0,0.5265433]
[1743213438509,0.10673626,84301.0,84300.0,0.5265433]
[1743213438710,0.10673626,84301.0,84300.0,0.5384264]
[1743213439505,0.10773626,84301.0,84300.0,0.5384264]
[1743213441115,0.10773626,84301.0,84300.0,1.2600264]
[1743213441418,0.10713625,84301.0,84300.0,1.2600264]
[1743213442114,0.10713625,84301.0,84300.0,1.2295264]
[1743213443110,0.10713625,84301.0,84300.0,0.5079264]
[1743213443313,0.10781625,84301.0,84300.0,1.2295264]
[1743213443502,0.10713625,84301.0,84300.0,1.2295264]
[1743213444115,0.001,84301.0,84300.0,1.2295264]
[1743213444417,0.001,84301.0,84300.0,1.2176433]
[1743213444616,0.001,84301.0,84300.0,1.22957851]
[1743213447011,0.001,84301.0,84300.0,0.50797851]
[1743213447210,0.001,84301.0,84300.0,1.23031777]
[1743213452122,0.001,84301.0,84300.0,0.50871777]
[1743213452318,0.001,84301.0,84300.0,1.23031777]
[1743213452722,0.0339,84301.0,84300.0,1.23031777]
[1743213453021,0.0339,84301.0,84300.0,1.23019682]
[1743213454609,0.0339,84301.0,84300.0,0.86939682]
[1743213454814,0.0339,84301.0,84300.0,1.23019682]
[1743213457016,0.0339,84301.0,84300.0,1.44335437]
[1743213457325,0.0339,84301.0,84300.0,0.72175437]
[1743213457715,0.0339,84301.0,84300.0,1.44335437]
[1743213460828,0.0339,84301.0,84300.0,1.23008325]
[1743213462226,0.001,84301.0,84300.0,1.23008325]
[1743213462424,0.0315,84307.0,84306.0,0.1186724]
[1743213462616,0.0315,84307.0,84306.0,0.39077954]
[1743213463138,0.0315,84307.0,84306.0,0.44178984]
[1743213463327,0.0315,84307.0,84306.0,0.50598984]
[1743213463629,0.0315,84307.0,84306.0,0.54948452]
[1743213465125,0.0315,84307.0,84306.0,1.27108452]
[1743213465723,0.0647,84307.0,84306.0,1.27108452]
[1743213468332,0.0957,84307.0,84306.0,1.27108452]
[1743213469331,0.0957,84307.0,84306.0,1.68376544]
[1743213470328,0.00854865,84307.0,84306.0,1.68376544]
[1743213470529,0.00017796,84308.0,84307.0,0.118671]
[1743213470734,0.00017796,84308.0,84307.0,0.40073814]
[1743213470940,0.00017796,84308.0,84307.0,1.18493814]
[1743213471128,0.00017796,84308.0,84307.0,1.27944312]
[1743213472826,0.00017796,84308.0,84307.0,1.31054312]
[1743213474329,0.00017796,84308.0,84307.0,1.26915598]
[1743213474530,0.00017796,84308.0,84307.0,1.31010788]
[1743213476540,0.00017796,84308.0,84307.0,1.2355132]
[1743213477036,0.00017796,84308.0,84307.0,1.21031203]
[1743213479942,0.00017796,84308.0,84307.0,1.23555693]
[1743213482940,0.00017796,84308.0,84307.0,1.21031203]
[1743213483641,0.00017796,84308.0,84307.0,0.48871203]
[1743213483843,0.00017796,84308.0,84307.0,1.21031203]
[1743213484938,0.00017796,84308.0,84307.0,1.23546907]
[1743213485132,0.00017796,84308.0,84307.0,0.51386907]
[1743213485331,0.00017796,84308.0,84307.0,1.23546907]
[1743213487745,0.00017796,84308.0,84307.0,1.27910583]
[1743213489148,0.00017796,84308.0,84307.0,1.25394879]
[1743213489739,0.00017796,84308.0,84307.0,2.01742249]
[1743213490149,0.0326,84315.0,84314.0,0.1186611]
[1743213490340,0.03336,84315.0,84314.0,0.49597183]
[1743213491049,0.03336,84315.0,84314.0,0.58422022]
[1743213491446,0.03336,84315.0,84314.0,0.94502022]
[1743213492048,0.06606,84315.0,84314.0,0.91987183]
[1743213492748,0.07815523,84315.0,84314.0,0.91987183]
[1743213494343,0.07815523,84315.0,84314.0,1.20452744]
[1743213495440,0.07815523,84315.0,84314.0,0.48292744]
[1743213495645,0.07815523,84315.0,84314.0,1.20452744]
[1743213496045,0.07815523,84315.0,84314.0,1.25565092]
[1743213496446,0.19681493,84315.0,84314.0,1.25565092]
[1743213497051,0.19681493,84315.0,84314.0,0.53405092]
[1743213497250,0.19681493,84315.0,84314.0,1.25565092]
[1743213497752,0.19681493,84315.0,84314.0,0.53405092]
[1743213497953,0.19681493,84315.0,84314.0,1.25565092]
[1743213498144,0.19681493,84315.0,84314.0,0.97099531]
[1743213503856,0.19681493,84315.0,84314.0,0.90789531]
[1743213504155,0.19681493,84315.0,84314.0,0.85677183]
[1743213505256,0.19681493,84315.0,84314.0,0.85627113]
[1743213506042,0.19681493,84315.0,84314.0,0.8410211]
[1743213507550,0.19681493,84315.0,84314.0,0.8728211]
[1743213509363,0.19681493,84315.0,84314.0,0.36156]
[1743213510152,0.19681493,84315.0,84314.0,0.00076]
[1743213511958,0.31149493,84315.0,84314.0,0.03216]
[1743213512562,0.31149493,84315.0,84314.0,0.06456]
[1743213515954,0.31149493,84315.0,84314.0,0.03216]
[1743213525169,0.31149493,84315.0,84314.0,0.1508211]
[1743213525469,0.24619493,84315.0,84314.0,0.1508211]
[1743213529070,0.24619493,84315.0,84314.0,0.03216]
[1743213529456,0.24619493,84315.0,84314.0,0.39296]
[1743213530564,0.24619493,84315.0,84314.0,0.03216]
[1743213530878,0.24619493,84315.0,84314.0,0.39296]
[1743213532367,0.35229816,84315.0,84314.0,0.39296]
[1743213532762,0.35229816,84315.0,84314.0,0.03216]
[1743213532962,0.35229816,84315.0,84314.0,0.3922]
[1743213533163,0.35229816,84315.0,84314.0,0.03212]
[1743213533363,0.35229816,84315.0,84314.0,0.3922]
[1743213533574,0.35229816,84315.0,84314.0,0.39284]
[1743213535558,0.24619493,84315.0,84314.0,0.39284]
[1743213536474,0.24619493,84315.0,84314.0,0.06294]
[1743213536675,0.24619493,84315.0,84314.0,0.42374]
[1743213537568,0.24619493,84315.0,84314.0,0.06294]
[1743213537767,0.24619493,84315.0,84314.0,0.42374]
[1743213537969,0.24619493,84315.0,84314.0,0.06294]
[1743213538180,0.24619493,84315.0,84314.0,0.42374]
[1743213543169,0.24619493,84315.0,84314.0,0.06294]
[1743213543570,0.24619493,84315.0,84314.0,0.42374]
[1743213544878,0.24619493,84315.0,84314.0,0.36144]
[1743213545078,0.1186668,84310.0,84309.0,0.0308]
[1743213545272,0.1193868,84310.0,84309.0,0.04658868]
[1743213546081,0.1809868,84310.0,84309.0,0.04658868]
[1743213548675,0.1809868,84310.0,84309.0,0.01578868]
[1743213549084,0.1809868,84310.0,84309.0,0.0006]
[1743213550480,0.35764479,84310.0,84309.0,0.0006]
[1743213550884,0.1186724,84306.0,84305.0,0.0645]
[1743213551082,0.1186724,84306.0,84305.0,0.08023941]
[1743213551083,0.2340324,84306.0,84305.0,0.08023941]
[1743213551789,0.2958324,84306.0,84305.0,0.08023941]
[1743213553673,0.2958324,84306.0,84305.0,0.08023389]
[1743213554075,0.43720475,84306.0,84305.0,0.08023389]
[1743213554285,0.43720475,84306.0,84305.0,0.0651]